bitfinex/quotes_ETHUSD_20250414
["timestamp","ask_amount","ask_price","bid_price","bid_amount"]
[1744650353972,0.06117611,1631.0,1630.5,55.138]
[1744650354299,6.13229,1630.8,1630.5,7.313]
[1744650354492,0.06117611,1630.8,1630.5,7.313]
[1744650354692,0.7333,1630.7,1630.1,0.798]
[1744650354890,0.7333,1630.7,1629.9,0.798]
[1744650354891,0.7333,1630.3,1629.9,0.798]
[1744650355110,0.7333,1630.3,1629.5,7.313]
[1744650355111,6.13497,1630.0,1629.7,0.798]
[1744650355405,6.59115419,1630.1,1629.7,6.13598]
[1744650355609,6.86755,1630.2,1629.8,0.613598]
[1744650355803,0.79447611,1630.2,1629.8,0.613598]
[1744650356004,6.13564,1629.9,1629.5,8.111]
[1744650356180,12.27117,1629.9,1629.5,14.24768]
[1744650356384,6.13701,1629.5,1629.2,0.7844]
[1744650356585,6.13688,1629.5,1629.2,1.423562]
[1744650356812,6.1376,1629.3,1628.9,6.92129]
[1744650357022,6.13854,1629.1,1628.7,6.92199]
[1744650357175,6.13934,1628.9,1628.6,7.313]
[1744650357370,6.13969,1628.8,1628.6,7.313]
[1744650357593,0.06117611,1628.8,1628.4,13.8867132]
[1744650357771,6.14002,1628.7,1628.4,9.83073752]
[1744650357972,6.13961,1628.8,1628.4,15.97169752]
[1744650358172,6.13961,1628.8,1628.4,8.22584432]
[1744650358375,0.7333,1628.7,1628.3,0.8208]
[1744650358604,0.7333,1628.7,1628.3,6.96216]
[1744650358809,6.87331,1628.7,1628.3,6.96216]
[1744650359308,6.87331,1628.7,1628.3,6.96197]
[1744650359478,7.33514888,1628.9,1628.4,6.14081]
[1744650359679,6.20066611,1628.8,1628.5,6.1405]
[1744650359879,0.7333,1628.9,1628.5,6.14041]
[1744650360202,6.93295611,1629.1,1628.7,6.13976]
[1744650360501,0.79447611,1629.1,1628.8,6.13933]
[1744650360803,10.313,1629.4,1628.4,0.70230147]
[1744650360804,14.18355,1629.4,1629.0,6.1387]
[1744650360975,0.06117611,1629.3,1628.9,12.891743]
[1744650361175,14.18355,1629.4,1629.0,12.27714]
[1744650361400,8.0463,1629.4,1628.9,6.753003]
[1744650361715,8.0463,1629.4,1628.7,0.823]
[1744650361716,6.13857,1629.1,1628.7,6.96268]
[1744650361914,6.19974611,1629.1,1628.7,13.10242]
[1744650362209,0.06117611,1629.1,1628.8,6.13931]
[1744650362507,6.13975,1628.8,1628.4,6.84316147]
[1744650362729,6.20120611,1628.7,1628.3,6.14136]
[1744650362885,0.06117611,1628.7,1628.1,55.9626]
[1744650363211,0.06117611,1628.7,1628.4,6.14076]
[1744650363409,0.06117611,1628.8,1628.4,6.14076]
[1744650363580,6.20085611,1628.8,1628.4,12.2816]
[1744650363781,6.13992,1628.7,1628.3,6.14131]
[1744650364006,6.13992,1628.7,1628.3,7.369512]
[1744650364311,6.13953,1628.8,1628.4,6.14081]
[1744650364496,6.87329,1628.9,1628.5,6.20194966]
[1744650364703,6.93446611,1628.9,1628.3,3.0]
[1744650364892,6.13984,1628.8,1628.3,6.14103]
[1744650365078,6.13993,1628.7,1628.4,0.614103]
[1744650365810,0.06117611,1628.7,1628.2,6.14171]
[1744650366008,6.14036,1628.6,1628.2,12.28327]
[1744650366409,12.34117611,1628.7,1628.3,6.14129]
[1744650366717,12.27997,1628.7,1628.3,6.14118]
[1744650367009,6.14025,1628.6,1628.3,7.369472]
[1744650367214,13.01243,1628.9,1628.1,8.1636]
[1744650367215,0.06117611,1628.5,1628.1,8.1636]
[1744650367412,6.14115,1628.4,1628.1,14.30565]
[1744650367581,6.14076,1628.5,1628.1,20.4477]
[1744650367911,12.34290611,1628.5,1628.1,14.30565]
[1744650368080,6.13958,1628.8,1628.4,6.1408]
[1744650368281,0.06117611,1628.7,1628.4,6.1408]
[1744650368693,6.13999,1628.7,1628.4,6.75504]
[1744650368896,6.20161611,1628.6,1628.2,12.28324]
[1744650369104,6.13992,1628.7,1628.3,6.14125]
[1744650369294,12.27934,1628.8,1628.4,12.28173]
[1744650369620,6.20129611,1628.7,1628.1,8.1636]
[1744650369828,6.20129611,1628.7,1628.3,12.28229]
[1744650369988,0.06117611,1628.7,1628.4,6.1409]
[1744650370193,0.06117611,1628.7,1628.5,6.14061]
[1744650370419,0.06117611,1628.8,1628.5,6.14051]
[1744650370627,0.06117611,1628.8,1628.2,6.14157]
[1744650370794,6.14024,1628.6,1628.1,14.30566]
[1744650371131,6.14024,1628.6,1628.1,0.05]
[1744650371132,6.14148,1628.3,1628.1,0.05]
[1744650371427,6.93622611,1628.2,1628.1,0.05]
[1744650372117,16.07621611,1628.2,1628.1,1e-05]
[1744650372421,16.01504,1628.2,1628.1,1e-05]
[1744650373820,12.28303,1628.3,1628.1,1e-05]
[1744650374020,12.28114,1628.4,1628.1,1e-05]
[1744650374331,9.90069552,1628.7,1628.1,1e-05]
[1744650374332,20.33161,1628.7,1628.3,6.14123]
[1744650374626,0.06117611,1628.6,1628.3,6.14123]
[1744650374831,6.14078,1628.5,1628.1,6.756364]
[1744650375031,6.20152611,1628.6,1628.2,6.14161]
[1744650375191,0.06117611,1628.6,1628.3,6.14118]
[1744650375397,0.06117611,1628.6,1628.1,6.756304]
[1744650375598,6.1409,1628.5,1628.1,12.898354]
[1744650375797,6.1409,1628.5,1628.2,6.14167]
[1744650375999,6.1409,1628.5,1628.2,13.5730574]
[1744650376199,6.20149611,1628.6,1628.3,6.14123]
[1744650376431,0.06117611,1628.6,1628.4,6.1409]
[1744650376627,13.07446611,1628.7,1628.4,6.1409]
[1744650376834,0.06117611,1628.6,1628.3,12.28244]
[1744650377030,6.20104611,1628.7,1628.4,6.14097]
[1744650377329,0.06117611,1628.7,1628.1,7.556324]
[1744650377635,6.1415,1628.3,1628.1,1e-05]
[1744650377797,6.20267611,1628.3,1628.1,1e-05]
[1744650378005,6.14175,1628.2,1628.1,1e-05]
[1744650378997,8.77870611,1628.2,1628.1,1e-05]
[1744650379733,9.24343661,1628.2,1628.1,1e-05]
[1744650380262,18.38342661,1628.2,1628.1,1e-05]
[1744650380411,18.8722505,1628.2,1628.1,1e-05]
[1744650382036,18.8722505,1628.2,1627.1,0.05]
[1744650382037,12.28294,1627.9,1627.1,0.05]
[1744650382205,6.1453,1627.3,1627.1,0.05]
[1744650382404,6.20647611,1627.3,1627.1,0.05]
[1744650382628,12.35191611,1627.3,1627.1,0.05]
[1744650382927,6.14552,1627.2,1627.1,0.05]
[1744650383304,6.8786,1627.3,1627.1,0.05]
[1744650383532,6.20669611,1627.2,1627.1,0.05]
[1744650383712,6.8786,1627.3,1627.1,0.05]
[1744650384032,6.14552,1627.2,1627.1,0.05]
[1744650384553,12.34668611,1627.2,1627.1,0.05]
[1744650384717,12.73905382,1627.2,1627.1,0.05]
[1744650385157,12.28551,1627.2,1627.1,0.05]
[1744650385324,12.34668611,1627.2,1627.1,0.05]
[1744650385858,12.28551,1627.2,1627.1,0.05]
[1744650386519,6.14551,1627.3,1627.1,0.05]
[1744650386726,6.13999,1627.4,1627.1,6.19571]
[1744650387022,6.20116611,1627.4,1627.1,13.038661]
[1744650387253,12.34606611,1627.4,1627.1,6.892881]
[1744650387448,12.28489,1627.4,1627.1,6.892881]
[1744650387654,0.7333,1627.9,1627.2,0.06145284]
[1744650387827,6.20464611,1627.8,1627.5,6.1442]
[1744650388021,0.06117611,1627.8,1627.7,6.14363]
[1744650388233,6.14361,1627.8,1627.5,1.304512]
[1744650388576,0.06117611,1627.9,1627.6,6.14386]
[1744650388738,0.06117611,1627.9,1627.4,0.7562]
[1744650388739,6.20414611,1627.9,1627.4,0.7562]
[1744650388937,0.06117611,1627.9,1627.6,12.28776]
[1744650389143,9.89778,1628.2,1627.9,6.14262]
[1744650389144,7.322,1628.2,1627.9,6.14262]
[1744650389349,6.20316611,1628.2,1627.8,6.91827]
[1744650389543,6.14193,1628.2,1627.8,13.06144]
[1744650389844,0.06117611,1628.2,1627.9,6.14262]
[1744650390027,0.7333,1628.4,1628.0,6.14236]
[1744650390028,6.20259611,1628.3,1628.0,6.14236]
[1744650390374,6.14212,1628.2,1627.8,8.224384]
[1744650390683,6.14214,1628.1,1627.8,8.224364]
[1744650390893,0.7333,1628.4,1627.9,6.14285]
[1744650391046,6.20276611,1628.3,1627.9,12.2856]
[1744650391360,6.20276611,1628.3,1628.0,6.14231]
[1744650391518,0.06117611,1628.3,1627.8,0.7751]
[1744650391720,6.1423,1628.1,1627.8,0.7751]
[1744650391921,6.14175,1628.2,1627.8,6.91822]
[1744650392227,6.14267,1628.0,1627.6,6.14385]
[1744650392539,6.14282,1628.0,1627.6,6.144]
[1744650392745,6.14291,1627.9,1627.6,12.2879]
[1744650392934,6.14249,1628.1,1627.7,6.14353]
[1744650393139,0.06117611,1628.0,1627.7,12.28704]
[1744650393341,6.87431,1628.4,1627.8,6.14323]
[1744650393648,6.14207,1628.2,1627.9,6.14279]
[1744650394049,6.1414,1628.3,1627.9,6.14275]
[1744650394376,6.20306611,1628.2,1627.8,12.28632]
[1744650394542,0.06117611,1628.2,1627.8,6.14315]
[1744650394737,6.14176,1628.2,1627.9,6.14274]
[1744650394932,6.14176,1628.2,1627.8,12.28626]
[1744650395141,6.14176,1628.2,1627.8,7.371836]
[1744650395343,6.14226,1628.1,1627.8,6.14321]
[1744650395629,6.14226,1628.1,1627.6,6.14396]
[1744650395630,6.14299,1627.9,1627.6,6.14396]
[1744650395828,6.14228,1628.1,1627.8,6.14305]
[1744650396127,12.34588611,1628.1,1627.8,6.14305]
[1744650396344,6.14181,1628.2,1627.8,6.14305]
[1744650396544,6.14223,1628.1,1627.8,12.28617]
[1744650396757,6.14148,1628.3,1628.0,6.14249]
[1744650396964,0.06117611,1628.3,1627.9,0.7647]
[1744650397181,6.14101,1628.4,1628.1,6.14211]
[1744650397658,20.33609,1628.6,1628.0,6.1425]
[1744650397860,6.14029,1628.6,1628.3,6.14108]
[1744650398166,13.33291214,1628.9,1628.6,6.14002]
[1744650398354,6.13949,1628.8,1628.5,6.14056]
[1744650398566,7.322,1629.0,1628.4,6.14099]
[1744650398567,13.46088,1629.0,1628.4,6.14099]
[1744650398853,0.32029018,1629.2,1628.9,6.13879]
[1744650399032,6.19842611,1629.4,1629.0,6.13858]
[1744650399231,6.13827,1629.2,1628.8,6.1394]
[1744650399440,6.13827,1629.2,1628.8,6.13934]
[1744650399758,6.13778,1629.3,1628.9,6.13892]
[1744650400068,14.5126503,1629.5,1628.9,6.13892]
[1744650400069,6.13816,1629.2,1628.9,0.06138181]
[1744650400267,6.13892,1629.0,1628.7,8.0829]
[1744650400655,6.13927,1628.9,1628.7,8.0829]
[1744650400857,12.27859,1628.9,1628.7,8.0829]
[1744650401162,6.13948,1628.8,1628.7,7.322]
[1744650401350,6.14024,1628.6,1628.2,0.7933]
[1744650401555,12.894874,1628.6,1628.2,6.93486]
[1744650401759,6.14033,1628.6,1628.2,6.93486]
[1744650401954,12.27994,1628.7,1628.3,12.28247]
[1744650402149,6.1395,1628.8,1628.5,6.14051]
[1744650402350,6.13986,1628.7,1628.4,6.14083]
[1744650402543,6.13986,1628.7,1628.3,6.1413]
[1744650402739,12.2792,1628.8,1628.3,0.7937437]
[1744650402951,6.13957,1628.8,1628.2,10.93787695]
[1744650403134,6.13972,1628.8,1628.4,6.1408]
[1744650403335,6.13997,1628.7,1628.4,6.14091]
[1744650403531,12.27928,1628.8,1628.4,6.14098]
[1744650403864,6.13911,1628.9,1628.2,10.93783695]
[1744650404161,6.13911,1628.9,1628.5,12.28068]
[1744650404162,12.27839,1628.9,1628.5,12.28068]
[1744650404366,6.13911,1628.9,1628.5,6.1403]
[1744650404571,6.13949,1628.8,1628.5,12.28078]
[1744650404755,6.87205,1629.0,1628.4,6.1409]
[1744650404959,6.14004,1628.7,1628.3,6.14125]
[1744650405154,6.14026,1628.6,1628.3,12.2825]
[1744650405355,6.14003,1628.7,1628.2,4.24613695]
[1744650405536,6.1396,1628.8,1628.5,6.14045]
[1744650405738,6.1396,1628.8,1628.5,12.28094]
[1744650405946,6.13914,1628.9,1628.6,6.14023]
[1744650406569,6.13853,1629.1,1628.8,6.13947]
[1744650406743,13.01093,1629.3,1628.7,0.8012]
[1744650406744,6.87094,1629.3,1628.7,0.8012]
[1744650406948,12.27551,1629.3,1629.0,6.13866]
[1744650407149,6.13764,1629.3,1629.0,6.13866]
[1744650407357,0.06117611,1629.3,1628.8,6.13934]
[1744650407560,0.06117611,1629.3,1628.8,12.972774]
[1744650407561,6.13798,1629.2,1628.8,12.972774]
[1744650407849,12.27611,1629.2,1628.9,6.13906]
[1744650408078,6.13761,1629.3,1629.0,6.13861]
[1744650408368,6.13647,1629.6,1629.1,0.82777694]
[1744650408544,6.13753,1629.4,1629.1,0.7664]
[1744650408867,0.06117611,1629.5,1629.1,6.90441]
[1744650409070,6.93067611,1629.7,1629.3,6.1376]
[1744650409369,6.13523,1630.0,1629.6,6.13633]
[1744650409567,6.13535,1629.9,1629.6,6.93693]
[1744650409769,6.13535,1629.9,1629.6,0.8006]
[1744650409970,6.13497,1630.0,1629.6,0.8006]
[1744650410291,6.1356,1629.9,1629.6,0.8006]
[1744650410779,0.7333,1630.2,1629.7,6.13603]
[1744650410942,0.7333,1630.2,1629.6,1.494328]
[1744650410943,6.19576611,1630.1,1629.6,0.8006]
[1744650411141,6.13526,1630.0,1629.4,6.13716]
[1744650411346,6.13624,1629.7,1629.4,12.27422]
[1744650411781,12.27159,1629.8,1629.4,12.27422]
[1744650412075,6.13549,1629.9,1629.6,6.13621]
[1744650412274,6.13572,1629.8,1629.5,6.13655]
[1744650413382,12.2702,1630.0,1629.7,6.13609]
[1744650413873,6.13536,1629.9,1629.5,12.27341]
[1744650414039,6.13577,1629.8,1629.5,13.71447903]
[1744650414245,6.13536,1629.9,1629.6,6.13642]
[1744650414461,12.27088,1629.9,1629.6,6.13638]
[1744650414669,12.27091,1629.9,1629.6,6.13638]
[1744650414855,6.13536,1629.9,1629.6,6.13638]
[1744650415058,12.27016,1630.0,1629.7,6.1973831]
[1744650415257,12.27109,1629.9,1629.6,1.3714139]
[1744650415467,6.13541,1629.9,1629.6,1.3714139]
[1744650415670,12.27095,1629.9,1629.6,1.3714139]
[1744650415867,6.13541,1629.9,1629.6,7.5078439]
[1744650416071,6.13541,1629.9,1629.7,0.06135311]
[1744650416666,6.13541,1629.9,1629.6,6.13636]
[1744650417181,6.13546,1629.9,1629.7,0.8056]
[1744650417687,6.13572,1629.8,1629.7,0.8056]
[1744650417976,6.13546,1629.9,1629.7,0.8056]
[1744650418686,6.13572,1629.8,1629.5,13.09168]
[1744650418982,6.13572,1629.8,1629.5,14.61455603]
[1744650419383,6.13513,1630.0,1629.7,6.13599]
[1744650419578,12.27025,1630.0,1629.6,6.1363]
[1744650419778,12.27025,1630.0,1629.6,12.27277]
[1744650419979,6.13538,1629.9,1629.6,6.1363]
[1744650420186,6.13538,1629.9,1629.6,6.92627491]
[1744650420488,6.13647,1629.6,1629.5,0.8182]
[1744650420781,0.7333,1630.2,1629.6,6.13643]
[1744650420782,6.86832,1630.0,1629.6,6.13643]
[1744650420983,6.86763,1630.2,1629.9,6.1352]
[1744650421184,6.13511,1630.0,1629.6,6.1361]
[1744650421484,0.7833,1630.4,1629.8,1.3513]
[1744650421684,0.05,1630.4,1630.0,6.68496]
[1744650421987,0.05,1630.4,1630.3,7.48514]
[1744650422166,0.05,1630.4,1630.3,17.8544592]
[1744650422360,0.05,1630.4,1630.3,17.79314]
[1744650422658,0.05,1630.4,1630.3,11.47946767]
[1744650422858,0.05,1630.4,1630.3,14.79314]
[1744650423088,0.05,1630.4,1630.3,18.24314]
[1744650423253,0.05,1630.4,1630.3,12.1093]
[1744650423457,6.18346,1630.4,1630.3,11.308]
[1744650423784,0.05,1630.4,1630.3,7.308]
[1744650424086,0.05,1630.4,1630.3,8.0388]
[1744650424452,0.05,1630.4,1630.3,14.78396952]
[1744650424651,0.05,1630.4,1630.3,18.52314]
[1744650425750,0.05,1630.4,1630.3,22.52314]
[1744650427074,0.05,1630.4,1630.3,21.97314]
[1744650427407,0.05,1630.4,1630.3,18.97314]
[1744650428387,0.05,1630.4,1630.3,19.52314]
[1744650428760,0.05,1630.4,1630.3,22.52314]
[1744650430915,0.05,1630.4,1630.3,12.8393]
[1744650431064,0.05,1630.4,1630.3,11.308]
[1744650431259,0.05,1630.4,1630.3,17.50317018]
[1744650431563,0.05,1630.4,1630.3,17.44184]
[1744650432360,0.05,1630.4,1630.3,20.99184]
[1744650432563,0.05,1630.4,1630.3,21.44069366]
[1744650434617,0.7333,1631.1,1630.3,21.44069366]
[1744650434801,6.92491611,1631.3,1630.9,6.13144]
[1744650434999,12.2612,1631.2,1630.9,6.13144]
[1744650435399,12.26121,1631.2,1630.9,6.13144]
[1744650435712,6.13055,1631.2,1630.9,7.357771]
[1744650435896,12.26123,1631.2,1630.9,7.357771]
[1744650436113,6.13055,1631.2,1630.9,7.357771]
[1744650436293,6.13055,1631.2,1630.9,13.489221]
[1744650436602,6.86369,1631.3,1630.9,7.357721]
[1744650436803,12.99413,1631.3,1630.9,12.26283]
[1744650436981,12.99413,1631.3,1631.0,6.13115]
[1744650436982,6.86358,1631.3,1631.0,6.13115]
[1744650437313,0.7333,1631.3,1631.1,0.06130162]
[1744650437613,6.13084,1631.1,1630.9,4.0]
[1744650437787,6.1306,1631.2,1630.9,4.0]
[1744650437982,6.13112,1631.1,1630.9,5.013182]
[1744650438184,12.26222,1631.1,1630.9,5.013182]
[1744650438488,6.1311,1631.1,1630.9,4.0]
[1744650438685,6.8644,1631.1,1630.9,4.0]
[1744650438984,6.1312,1631.0,1630.9,4.0]
[1744650439188,6.19237611,1631.0,1630.9,4.0]
[1744650439917,12.26517,1630.7,1630.3,23.25238366]
[1744650440212,6.19403611,1630.6,1630.5,4.0]
[1744650440383,6.92733611,1630.6,1630.5,4.0]
[1744650440584,6.1342,1630.3,1629.9,13.43031]
[1744650440803,6.13346,1630.4,1630.1,6.13436]
[1744650440983,6.1346,1630.1,1629.9,7.295]
[1744650441378,6.13546,1629.9,1629.7,0.61361]
[1744650441584,6.13525,1630.0,1629.8,4.0]
[1744650442017,6.13534,1629.9,1629.8,4.0]
[1744650442383,6.13525,1630.0,1629.8,4.0]
[1744650442594,6.13534,1629.9,1629.8,4.0]
[1744650442789,6.13513,1630.0,1629.8,4.0]
[1744650442991,6.13513,1630.0,1629.7,0.61361]
[1744650443315,6.19630611,1630.0,1629.7,6.74961]
[1744650443613,0.06117611,1630.0,1629.7,0.61361]
[1744650443817,6.19625611,1630.0,1629.5,0.7505]
[1744650444114,6.13535,1629.9,1629.6,10.13628]
[1744650444413,6.13535,1629.9,1629.6,4.0]
[1744650444716,6.13999,1630.4,1629.8,6.13571]
[1744650444882,0.7333,1630.5,1629.9,14.800311]
[1744650445082,0.7333,1630.5,1630.2,6.13404]
[1744650445283,6.86641,1630.5,1630.1,12.26895]
[1744650445695,0.79447611,1630.5,1630.0,3.0]
[1744650445912,0.79447611,1630.5,1630.0,9.13483]
[1744650446079,6.13346,1630.4,1630.0,11.5283111]
[1744650446287,12.9997,1630.5,1630.0,5.45485115]
[1744650446615,12.2673,1630.4,1630.0,9.13489]
[1744650446800,0.7333,1630.5,1630.2,6.13403]
[1744650447003,6.13395,1630.3,1630.0,6.13492]
[1744650447719,6.13395,1630.3,1629.9,7.909571]
[1744650447720,6.13429,1630.2,1629.9,7.909571]
[1744650448013,6.13534,1629.9,1629.8,4.0]
[1744650448316,6.19651611,1629.9,1629.8,4.0]
[1744650448482,8.04317772,1629.9,1629.8,4.0]
[1744650448815,6.19651611,1629.9,1629.8,4.0]
[1744650449026,6.13623,1629.7,1629.5,7.297]
[1744650449191,12.27255,1629.7,1629.5,7.297]
[1744650449386,6.19764611,1629.6,1629.5,7.297]
[1744650449586,6.13703,1629.5,1629.2,6.13774]
[1744650449791,12.2742,1629.5,1629.2,2.039355]
[1744650449989,0.7333,1629.7,1629.2,8.177175]
[1744650449990,6.13653,1629.6,1629.2,8.177175]
[1744650450342,6.13653,1629.6,1629.2,8.23852712]
[1744650450536,6.13685,1629.5,1629.2,8.177155]
[1744650450718,6.13685,1629.5,1629.2,8.23852712]
[1744650450886,12.27323,1629.6,1629.2,8.23852712]
[1744650451089,6.13653,1629.6,1629.2,14.37637712]
[1744650451290,12.27336,1629.6,1629.2,8.177155]
[1744650451644,12.27322,1629.6,1629.2,8.177155]
[1744650451930,6.13687,1629.5,1629.2,8.177155]
[1744650452136,6.13687,1629.5,1629.2,2.039355]
[1744650452587,12.27393,1629.5,1629.2,2.039355]
[1744650453226,6.13687,1629.5,1629.2,8.177275]
[1744650453439,0.7333,1629.7,1629.2,8.23862565]
[1744650453637,6.13701,1629.5,1629.2,2.039355]
[1744650454044,12.27414,1629.5,1629.2,2.039355]
[1744650454342,6.13701,1629.5,1629.2,2.039355]
[1744650454643,6.13701,1629.5,1629.2,8.177275]
[1744650454839,0.79447611,1629.7,1629.3,6.13757]
[1744650455021,6.13668,1629.6,1629.3,6.13757]
[1744650455227,6.13668,1629.6,1629.3,12.27502]
[1744650455549,6.13689,1629.5,1629.2,8.177205]
[1744650456149,6.86952,1629.7,1629.4,6.13709]
[1744650456440,13.06698611,1629.7,1629.4,6.13709]
[1744650456644,6.13664,1629.6,1629.3,6.9551705]
[1744650456828,12.27331,1629.6,1629.3,6.9551705]
[1744650457035,12.27331,1629.6,1629.2,8.177265]
[1744650457036,6.13687,1629.5,1629.2,8.177265]
[1744650457238,6.13687,1629.5,1629.2,2.039355]
[1744650457541,6.13693,1629.5,1629.1,13.43535]
[1744650457743,0.06117611,1629.4,1629.0,3.0]
[1744650457944,0.06117611,1629.6,1629.2,6.13764]
[1744650458135,6.19771611,1629.6,1629.1,0.06137215]
[1744650458443,0.06117611,1629.6,1629.2,6.13798]
[1744650458624,6.13751,1629.4,1629.0,9.13857]
[1744650458825,6.19868611,1629.4,1629.1,6.13823]
[1744650459025,6.13751,1629.4,1629.1,12.33783782]
[1744650459226,6.13751,1629.4,1629.1,12.27646]
[1744650459423,6.19807611,1629.5,1629.2,6.13787]
[1744650459634,0.06117611,1629.6,1629.0,10.052427]
[1744650459837,6.13774,1629.3,1629.0,23.491107]
[1744650460149,6.13772,1629.3,1629.0,17.352427]
[1744650460565,6.13799,1629.2,1629.0,8.213857]
[1744650460721,6.13888,1629.0,1628.6,0.8211]
[1744650460922,6.13918,1628.9,1628.6,6.96119]
[1744650461235,6.13835,1629.1,1628.5,13.44056]
[1744650461431,0.7333,1628.8,1628.2,6.14171]
[1744650461731,6.14036,1628.6,1628.1,0.05]
[1744650461938,6.20112611,1628.7,1628.3,6.14115]
[1744650462131,0.06117611,1628.7,1628.4,6.14095]
[1744650462335,0.7333,1628.8,1628.4,0.69650588]
[1744650462651,6.1384,1629.1,1628.4,0.69650588]
[1744650462860,13.00969,1629.2,1628.8,6.13933]
[1744650463022,13.00969,1629.2,1628.8,12.27866]
[1744650463023,6.87134,1629.2,1628.8,12.27866]
[1744650463220,6.93174611,1629.4,1629.1,6.13828]
[1744650463554,6.19804611,1629.5,1629.1,6.13821]
[1744650463859,6.13724,1629.4,1629.1,7.448426]
[1744650464061,6.8698,1629.6,1629.3,6.13743]
[1744650464260,0.7333,1629.8,1629.4,6.13715]
[1744650464460,0.79447611,1629.8,1629.5,6.13671]
[1744650464624,6.86916,1629.8,1629.5,6.13671]
[1744650464832,0.06117611,1630.0,1629.5,1.227387]
[1744650464833,0.7333,1630.0,1629.5,1.227387]
[1744650465161,6.13573,1629.8,1629.4,6.13694]
[1744650465328,13.00358,1630.0,1629.6,6.13634]
[1744650465862,13.00358,1630.0,1629.6,12.27269]
[1744650466156,0.7333,1630.2,1629.7,0.0613553]
[1744650466362,6.13497,1630.0,1629.6,6.89025]
[1744650466526,6.13497,1630.0,1629.7,0.689025]
[1744650466721,6.13497,1630.0,1629.7,6.824935]
[1744650466925,6.13465,1630.1,1629.7,6.824935]
[1744650467121,12.33062611,1630.1,1629.7,6.824935]
[1744650467361,12.2695,1630.1,1629.7,6.824935]
[1744650467561,6.86758,1630.2,1629.9,6.1353]
[1744650467862,6.13482,1630.1,1629.8,0.6824935]
[1744650468043,6.13482,1630.1,1629.7,12.27197]
[1744650468237,12.26975,1630.1,1629.7,6.13593]
[1744650468760,6.13478,1630.1,1629.8,6.13558]
[1744650468923,6.92894611,1630.2,1629.8,6.13558]
[1744650469131,6.1346,1630.1,1629.8,6.749138]
[1744650469327,6.13509,1630.0,1629.6,6.89019]
[1744650469539,6.13509,1630.0,1629.6,13.02658]
[1744650469757,12.27025,1630.0,1629.6,13.02658]
[1744650470131,12.26946,1630.1,1629.7,6.13595]
[1744650470476,6.13504,1630.0,1629.7,6.13595]
[1744650471038,6.86754,1630.2,1629.9,6.13518]
[1744650471372,6.86754,1630.2,1629.8,6.13564]
[1744650471373,6.13471,1630.1,1629.8,6.13564]
[1744650471537,6.13497,1630.0,1629.7,7.438686]
[1744650471869,6.92870611,1630.2,1629.9,6.13534]
[1744650472046,6.13423,1630.2,1629.9,6.1352]
[1744650472564,6.13479,1630.1,1629.8,6.1357]
[1744650472767,12.26872,1630.2,1629.8,7.4930046]
[1744650473068,6.13426,1630.2,1629.8,6.13557]
[1744650473437,6.19505611,1630.3,1630.0,6.13493]
[1744650473633,0.06117611,1630.3,1630.0,0.7738]
[1744650473866,6.13404,1630.3,1630.0,6.90866]
[1744650474180,6.13409,1630.3,1630.0,0.7738]
[1744650474333,6.13427,1630.2,1630.0,0.7738]
[1744650474535,6.19464611,1630.4,1629.8,14.18583]
[1744650474772,6.13474,1630.1,1629.8,14.18577]
[1744650474932,6.13425,1630.2,1629.8,8.0502]
[1744650475135,6.19542611,1630.2,1629.9,6.13514]
[1744650475337,6.13498,1630.0,1629.8,0.7592]
[1744650475544,12.27017,1630.0,1629.7,6.13599]
[1744650475766,6.13454,1630.2,1629.9,6.13534]
[1744650475965,6.13474,1630.1,1629.8,6.1356]
[1744650476177,6.13505,1630.0,1629.7,8.692329]
[1744650476353,6.13474,1630.1,1629.7,8.692279]
[1744650476750,6.13519,1630.0,1629.7,8.692279]
[1744650477154,12.26953,1630.1,1629.8,6.13565]
[1744650478983,6.13421,1630.2,1629.7,2.556329]
[1744650479147,6.13421,1630.2,1629.4,6.13711]
[1744650479148,6.1364,1629.7,1629.4,6.13711]
[1744650479347,0.79447611,1629.9,1629.2,12.27576]
[1744650479696,6.13649,1629.6,1629.1,9.354716]
[1744650479900,6.19766611,1629.6,1629.3,6.13748]
[1744650480192,6.13659,1629.6,1629.3,6.13754]
[1744650480398,0.06117611,1629.7,1629.2,0.9354716]
[1744650480709,6.13739,1629.4,1629.1,15.492926]
[1744650480987,6.19891611,1629.3,1629.0,53.98266]
[1744650481164,12.33679611,1629.3,1629.0,53.98266]
[1744650481362,12.27562,1629.3,1629.0,6.13866]
[1744650481711,12.27562,1629.3,1628.7,6.68982]
[1744650481712,6.19919611,1629.2,1628.5,6.91129]
[1744650481981,6.13989,1628.7,1628.4,12.28175]
[1744650482161,6.13972,1628.8,1628.5,6.14057]
[1744650482549,6.87166,1629.1,1628.3,6.96421]
[1744650482766,6.1402,1628.7,1628.3,13.1054]
[1744650482974,6.1402,1628.7,1628.3,14.41594]
[1744650483293,6.14055,1628.6,1628.3,2.13344]
[1744650483512,6.93440611,1628.7,1628.4,6.1409]
[1744650483699,17.18654718,1629.2,1628.3,2.13344]
[1744650483700,0.06117611,1628.8,1628.3,2.13344]
[1744650483865,13.07235611,1629.0,1628.6,12.28032]
[1744650484176,6.1397,1628.8,1628.4,12.28175]
[1744650484377,12.27942,1628.8,1628.4,6.14079]
[1744650484564,12.27997,1628.7,1628.3,13.10562]
[1744650484896,6.20170611,1628.6,1628.3,0.8229]
[1744650485300,0.06117611,1628.6,1628.1,13.48309]
[1744650485509,6.87362,1628.6,1628.2,6.20284834]
[1744650485710,6.87362,1628.6,1628.2,7.63508317]
[1744650486005,0.79447611,1628.6,1628.1,0.05]